bitfinex-derivatives/quotes_SOLF0:USTF0_20251211
["timestamp","ask_amount","ask_price","bid_price","bid_amount"]
[1765422807789,3.2,129.96,129.88,6.9279]
[1765422808193,0.05240815,129.93,129.91,0.04920612]
[1765422808981,3.25240815,129.93,129.91,0.04920612]
[1765422810386,0.05240815,129.93,129.91,0.04920612]
[1765422810995,0.05240815,129.93,129.92,65.36]
[1765422811590,9.03158184,129.93,129.91,0.04920612]
[1765422811891,3.25240815,129.93,129.91,0.04920612]
[1765422812109,5.77897001,129.92,129.91,0.04920612]
[1765422812293,8.97897001,129.92,129.91,0.04920612]
[1765422812494,5.77897001,129.92,129.91,0.04920612]
[1765422813590,0.05240815,129.93,129.91,0.04920612]
[1765422816192,10.29750017,129.98,129.91,0.04920612]
[1765422816386,5.77998421,129.97,129.91,0.04920612]
[1765422816591,10.29750017,129.98,129.91,0.04920612]
[1765422816592,5.77998421,129.96,129.91,0.04920612]
[1765422816790,5.77998421,129.95,129.91,0.04920612]
[1765422816990,10.29750017,129.98,129.91,0.04920612]
[1765422817198,5.78020186,129.97,129.91,0.04920612]
[1765422817395,5.83762357,129.96,129.92,6.9259]
[1765422817597,0.05742171,129.96,129.93,107.78023461]
[1765422817989,10.29750017,130.01,129.93,107.78023461]
[1765422818190,5.78637969,130.0,129.93,107.7245]
[1765422818498,5.78637969,129.99,129.93,107.7245]
[1765422818698,3.4,130.01,129.93,107.7245]
[1765422818899,0.04882259,129.98,129.96,0.05305042]
[1765422819097,6.89750017,130.03,129.97,65.36]
[1765422819295,9.19428986,130.02,129.97,65.36]
[1765422819498,5.79428986,130.01,129.97,65.36]
[1765422819703,5.79428986,130.0,129.97,65.36]
[1765422819902,3.4,130.02,129.97,65.36]
[1765422820102,5.79282345,130.01,129.97,65.36]
[1765422820402,0.05540637,130.0,129.98,0.0494096]
[1765422820599,0.05221895,130.0,129.98,0.04926646]
[1765422820799,3.4,130.05,129.98,0.04926646]
[1765422821003,5.7942462,130.04,129.99,107.6769]
[1765422821197,3.4,130.05,129.97,70.59536439]
[1765422821393,3.4,130.03,129.97,65.36]
[1765422821595,9.19272465,130.02,129.97,65.36]
[1765422821799,5.82136658,130.01,129.98,0.05874782]
[1765422822102,0.02864193,130.01,129.98,0.05874782]
[1765422822304,3.42864193,130.01,129.98,0.05874782]
[1765422823512,3.4,129.99,129.97,63.89919237]
[1765422823697,9.15878047,129.98,129.92,65.34]
[1765422823892,3.4,129.96,129.92,65.34]
[1765422824297,3.4,130.0,129.92,65.34]
[1765422824493,9.16345177,129.99,129.92,65.34]
[1765422824705,3.44919281,129.97,129.95,0.05083072]
[1765422825104,3.4,129.95,129.92,65.34]
[1765422825496,3.4,129.93,129.92,65.34]
[1765422826608,3.4,129.93,129.91,0.05557437]
[1765422827201,0.05330316,129.94,129.91,0.05557437]
[1765422828208,0.05330316,129.94,129.91,6.98177437]
[1765422828410,0.05330316,129.94,129.91,0.05557437]
[1765422828803,3.45330316,129.94,129.91,0.05557437]
[1765422829111,0.05330316,129.94,129.91,0.05557437]
[1765422829812,3.45330316,129.94,129.91,0.05557437]
[1765422830303,0.05330316,129.94,129.91,0.05557437]
[1765422832107,3.45330316,129.94,129.91,0.05557437]
[1765422834511,0.05330316,129.94,129.91,0.05557437]
[1765422835612,3.45330316,129.94,129.91,0.05557437]
[1765422837612,10.37850316,129.94,129.91,0.05557437]
[1765422837814,3.4,129.93,129.85,6.9296]
[1765422838004,3.4,129.93,129.86,65.34]
[1765422838209,3.4,129.9,129.86,65.34]
[1765422838705,3.4,129.88,129.86,65.34]
[1765422838906,3.45117165,129.88,129.86,65.39127295]
[1765422839408,3.45117165,129.88,129.86,0.05127295]
[1765422839609,3.45117165,129.88,129.82,65.34]
[1765422839610,3.4,129.87,129.82,65.34]
[1765422840109,3.4,129.86,129.82,65.34]
[1765422840315,3.4,129.89,129.82,68.56]
[1765422840506,3.4,129.87,129.84,0.05088616]
[1765422840817,3.45937801,129.87,129.84,0.05088616]
[1765422841217,3.4,129.86,129.82,65.34]
[1765422841410,3.4,129.86,129.77,107.8611]
[1765422841411,3.4,129.85,129.75,111.0969]
[1765422841613,3.4,129.84,129.76,65.34]
[1765422842418,0.0567058,129.81,129.79,0.04892766]
[1765422844612,107.7524,129.91,129.81,3.11]
[1765422844814,3.31,129.9,129.82,3.11]
[1765422845121,3.31,129.9,129.83,3.11]
[1765422845915,0.04926345,129.88,129.85,0.0553577]
[1765422846503,0.04926345,129.88,129.85,3.1653577]
[1765422847015,3.35926345,129.88,129.85,0.0553577]
[1765422847418,0.04926345,129.88,129.85,3.1653577]
[1765422847618,0.04926345,129.88,129.87,3.11]
[1765422848917,0.04926345,129.88,129.86,68.47]
[1765422849516,0.04926345,129.88,129.87,3.11]
[1765422850015,3.31,129.94,129.87,3.11]
[1765422850420,3.31,129.98,129.9,3.11]
[1765422850720,3.37,129.97,129.91,65.36]
[1765422850918,3.37,129.96,129.91,65.36]
[1765422851217,3.37,129.94,129.91,65.36]
[1765422852018,3.37,129.94,129.91,65.41542866]
[1765422852609,3.37,129.93,129.91,65.41542866]
[1765422853016,3.37,129.92,129.91,0.05542866]
[1765422853521,3.42659064,129.95,129.91,0.05542866]
[1765422853815,111.14239064,129.95,129.91,0.05542866]
[1765422854019,3.37,129.93,129.87,65.36]
[1765422855223,0.05901865,129.91,129.89,0.05078534]
[1765422856223,3.42901865,129.91,129.89,0.05078534]
[1765422857517,0.05901865,129.91,129.89,0.05078534]
[1765422858115,3.42901865,129.91,129.89,0.05078534]
[1765422864822,3.37,129.89,129.84,65.36]
[1765422866121,0.05828028,129.88,129.85,3.43004576]
[1765422866631,0.05828028,129.88,129.85,0.05004576]
[1765422868227,0.05828028,129.88,129.85,3.43004576]
[1765422868526,3.42828028,129.88,129.85,0.05004576]
[1765422869725,10.35668028,129.88,129.85,0.05004576]
[1765422870029,3.37,129.87,129.85,0.05004576]
[1765422872635,102.299,129.87,129.85,0.05004576]
[1765422872831,3.37,129.86,129.85,0.05004576]
[1765422873035,95.37,129.86,129.85,0.05004576]
[1765422877737,92.0,129.86,129.85,0.05004576]
[1765422877936,3.20828028,129.88,129.85,0.05004576]
[1765422878240,10.13668028,129.88,129.85,0.05004576]
[1765422878437,3.15,129.87,129.85,0.05004576]
[1765422878741,3.15,129.86,129.85,0.05004576]
[1765422879337,0.05828028,129.88,129.85,0.05004576]
[1765422879543,3.20828028,129.88,129.85,0.05004576]
[1765422880637,10.13678028,129.88,129.85,0.05004576]
[1765422880837,3.15,129.87,129.85,0.05004576]
[1765422881536,95.15,129.86,129.85,0.05004576]
[1765422883147,92.0,129.86,129.85,0.05004576]
[1765422883639,0.05828028,129.88,129.85,3.38004576]
[1765422884036,3.20828028,129.88,129.85,3.38004576]
[1765422884239,0.05828028,129.88,129.85,3.38004576]
[1765422884839,0.05828028,129.88,129.85,68.76004576]
[1765422885045,0.05828028,129.88,129.86,3.33]
[1765422887859,6.9253,129.94,129.87,3.33]
[1765422887860,3.15,129.94,129.87,3.33]
[1765422888250,92.0,129.97,129.88,3.33]
[1765422888251,95.15,129.97,129.88,3.33]
[1765422888657,5.81327678,129.96,129.88,3.33]
[1765422888963,0.04866919,129.93,129.91,3.38668026]
[1765422890156,92.0,129.97,129.91,3.38668026]
[1765422890357,3.15,129.99,129.92,3.33]
[1765422890759,3.15,129.97,129.91,65.38]
[1765422890960,3.15,129.95,129.91,65.38]
[1765422891268,0.05849101,129.94,129.92,3.38026078]
[1765422895970,0.05849101,129.94,129.93,3.33]
[1765422896267,3.15,129.98,129.93,3.33]
[1765422896470,95.15,130.01,129.94,3.33]
[1765422896673,3.15,130.01,129.95,3.33]
[1765422896863,3.15,130.01,129.96,68.69]
[1765422897069,3.15,129.99,129.97,0.05530392]
[1765422897466,3.15,129.99,129.96,65.36]
[1765422897674,3.15,129.99,129.92,65.36]
[1765422897972,10.0728,129.99,129.92,68.69]
[1765422898168,10.0728,129.99,129.93,3.33]
[1765422898564,0.05828108,129.97,129.95,0.04934371]
[1765422898875,3.20828108,129.97,129.95,0.04934371]
[1765422899268,0.05828108,129.97,129.95,0.04934371]
[1765422899468,0.05828108,129.97,129.95,3.37934371]
[1765422900370,0.05828108,129.97,129.95,0.04934371]
[1765422900568,0.05828108,129.97,129.95,3.37934371]
[1765422901268,3.15,130.03,129.95,3.37934371]
[1765422901472,3.15,130.03,129.95,3.33]
[1765422901675,3.15,130.03,129.92,173.0954]
[1765422901676,3.15,130.0,129.92,3.33]
[1765422901869,3.15,129.98,129.92,3.33]
[1765422902073,0.05664465,129.96,129.94,0.05794956]
[1765422902571,0.05664465,129.96,129.94,3.38794956]
[1765422902976,3.20664465,129.96,129.94,0.05794956]
[1765422903366,10.13074465,129.96,129.94,0.05794956]
[1765422903668,3.15,129.95,129.94,0.05794956]
[1765422904269,10.19074465,129.96,129.94,0.05794956]
[1765422904475,3.21,129.95,129.94,0.05794956]
[1765422904674,3.21,129.95,129.91,65.34]
[1765422904879,3.21,129.94,129.86,3.16]
[1765422905176,3.21,129.94,129.81,113.03858881]
[1765422905177,3.21,129.92,129.83,6.9307]
[1765422905470,3.21,129.92,129.84,65.34]
[1765422905868,3.26337614,129.89,129.87,0.05437882]
[1765422909072,0.05337614,129.89,129.87,0.05437882]
[1765422909266,0.05337614,129.89,129.87,3.21437882]
[1765422910676,3.40337614,129.89,129.87,0.05437882]
[1765422910879,0.05337614,129.89,129.87,3.43437882]
[1765422911374,3.40337614,129.89,129.87,0.05437882]
[1765422912871,10.33137614,129.89,129.87,0.05437882]
[1765422913066,3.35,129.88,129.87,0.05437882]
[1765422913380,0.05337614,129.89,129.87,3.43437882]
[1765422915682,3.35,129.96,129.87,3.43437882]
[1765422915884,3.35,129.96,129.87,3.38]
[1765422916274,3.35,129.94,129.87,3.38]
[1765422916475,3.40934714,129.92,129.89,0.05091346]
[1765422918987,0.05934714,129.92,129.89,3.43091346]
[1765422919483,3.40934714,129.92,129.89,0.05091346]
[1765422921088,10.33554714,129.92,129.89,0.05091346]
[1765422921292,3.35,129.9,129.82,3.38]
[1765422921488,3.35,129.89,129.82,3.38]
[1765422921790,3.35,129.87,129.82,3.38]
[1765422921993,3.35,129.87,129.79,68.74]
[1765422922291,0.05397651,129.84,129.82,0.05048364]
[1765422923291,0.05397651,129.84,129.82,3.43048364]
[1765422924884,3.40397651,129.84,129.82,0.05048364]
[1765422925489,3.35,129.83,129.79,65.36]
[1765422925687,3.35,129.81,129.72,3.38]
[1765422925890,3.35,129.81,129.72,68.74]
[1765422926090,3.35,129.81,129.73,3.38]
[1765422926390,3.35,129.81,129.73,107.8942]
[1765422926588,3.35,129.77,129.76,0.05428668]
[1765422926780,3.39937145,129.78,129.76,0.05428668]
[1765422927583,0.04937145,129.78,129.76,0.05428668]
[1765422927892,0.04937145,129.78,129.76,3.43428668]
[1765422928095,5.78848649,129.86,129.78,3.38]
[1765422928293,3.35,129.86,129.79,3.38]
[1765422929095,3.35,129.86,129.82,3.38]
[1765422929096,0.05917999,129.84,129.82,3.38]
[1765422929996,0.05917999,129.84,129.81,0.05544953]
[1765422930492,3.40917999,129.84,129.74,3.38]
[1765422930693,3.35,129.83,129.75,65.38]
[1765422930996,3.35,129.83,129.76,3.38]
[1765422931695,3.40464455,129.81,129.78,0.05294496]
[1765422931890,0.05464455,129.81,129.78,0.05294496]
[1765422932094,3.40464455,129.81,129.78,0.05294496]
[1765422933498,0.05464455,129.81,129.78,0.05294496]
[1765422933695,0.05464455,129.81,129.78,3.43294496]
[1765422940592,3.36,129.85,129.79,3.23]
[1765422940792,3.36,129.88,129.81,3.23]
[1765422940992,3.36,129.87,129.81,3.23]
[1765422941193,10.2889,129.87,129.81,3.23]
[1765422941504,3.36,129.86,129.8,65.4]
[1765422941703,0.05747102,129.84,129.82,0.05452338]
[1765422942602,0.05747102,129.84,129.82,3.28452338]
[1765422946297,0.05747102,129.84,129.83,3.23]
[1765422946497,10.2874,129.9,129.83,3.23]
[1765422947000,3.36,129.9,129.84,3.23]
[1765422947397,0.05534744,129.88,129.86,0.05861645]
[1765422949006,3.41534744,129.88,129.86,0.05861645]
[1765422951400,0.05534744,129.88,129.86,0.05861645]
[1765422951603,3.41534744,129.88,129.86,0.05861645]
[1765422954605,3.36,129.87,129.79,3.23]
[1765422954806,3.36,129.85,129.79,3.23]
[1765422955110,3.36,129.91,129.84,3.23]
[1765422955307,3.36,129.91,129.86,3.23]
[1765422955700,0.05059023,129.9,129.87,3.27918342]
[1765422956403,0.05059023,129.9,129.8,3.23]
[1765422956404,3.36,129.87,129.8,3.23]
[1765422956603,3.36,129.84,129.77,3.23]
[1765422957001,5.79817056,129.83,129.77,3.23]
[1765422957196,3.36,129.86,129.77,3.23]
[1765422957400,3.36,129.84,129.77,3.23]
[1765422957605,3.36,129.82,129.8,0.05744992]
[1765422959299,3.36,129.82,129.74,68.61]
[1765422960099,3.36,129.8,129.74,68.61]
[1765422960304,0.04929813,129.78,129.76,0.05816697]
[1765422960510,0.04929813,129.78,129.76,3.28816697]
[1765422960709,3.36,129.84,129.76,3.28816697]
[1765422960908,3.36,129.82,129.74,68.61]
[1765422961115,3.36,129.81,129.74,68.61]
[1765422961714,3.41520394,129.79,129.76,0.05393982]
[1765422964208,3.18,129.78,129.76,0.05393982]
[1765422964409,3.18,129.78,129.68,10.1485]
[1765422964410,3.18,129.76,129.68,10.1485]
[1765422964610,3.18,129.76,129.69,3.21]
[1765422965114,3.18,129.76,129.7,3.21]
[1765422965317,3.18,129.79,129.71,3.21]
[1765422965515,0.05490106,129.76,129.75,3.21]
[1765422965818,3.18,129.82,129.75,3.21]
[1765422966112,3.18,129.82,129.76,3.21]
[1765422966708,0.05701337,129.8,129.78,3.25980432]
[1765422968007,0.05701337,129.8,129.78,0.04980432]
[1765422968514,3.18,129.86,129.78,3.25980432]
[1765422968709,3.18,129.86,129.78,3.21]
[1765422969115,3.18,129.86,129.79,3.21]
[1765422969518,0.05422551,129.84,129.81,3.26048602]
[1765422971011,15.80560713,129.92,129.81,111.08718602]
[1765422971311,8.91754234,129.91,129.82,3.45]
[1765422971518,3.11,129.91,129.82,10.3811]
[1765422971720,3.11,129.9,129.83,3.45]
[1765422971910,3.11,129.88,129.8,3.45]
[1765422972106,0.05114444,129.85,129.83,3.50108296]
[1765422972310,116.62160713,129.92,129.83,3.45]
[1765422972311,8.91662591,129.9,129.83,3.45]
[1765422972508,3.11,129.9,129.83,3.45]
[1765422972909,3.11,129.9,129.8,111.2861]
[1765422973313,3.1605433,129.86,129.84,0.05383852]
[1765422974318,3.1605433,129.86,129.76,6.9344]
[1765422974319,3.11,129.84,129.76,6.9344]
[1765422974619,3.11,129.84,129.76,10.3844]
[1765422975118,6.9298,129.85,129.76,10.3844]
[1765422975119,3.11,129.82,129.76,3.45]
[1765422975314,0.05871543,129.8,129.78,0.05518532]
[1765422975720,0.05871543,129.8,129.78,3.50518532]
[1765422975921,5.76264282,129.84,129.78,3.50518532]
[1765422976225,3.11,129.86,129.79,3.45]
[1765422977024,3.11,129.89,129.81,3.45]
[1765422977222,0.05464197,129.84,129.82,3.45]
[1765422977419,3.16154398,129.84,129.82,0.05714593]
[1765422979325,0.05154398,129.84,129.82,3.50714593]
[1765422981427,3.16154398,129.84,129.82,0.05714593]
[1765422981830,0.05154398,129.84,129.82,3.50714593]
[1765422982333,0.05154398,129.84,129.82,0.05714593]
[1765422983132,0.05154398,129.84,129.82,3.50714593]
[1765422983333,0.05154398,129.84,129.82,0.05714593]
[1765422983821,0.05154398,129.84,129.82,3.50714593]
[1765422984020,0.05154398,129.84,129.82,0.05714593]
[1765422984231,3.16154398,129.84,129.82,0.05714593]
[1765422984732,3.11,129.82,129.75,68.85]
[1765422985728,0.05709789,129.8,129.77,3.50347213]
[1765422988543,0.05709789,129.8,129.77,68.90347213]
[1765422988741,0.05709789,129.8,129.78,3.45]
[1765422988946,107.7915,129.86,129.79,3.45]
[1765422988947,3.11,129.86,129.79,3.45]
[1765422989135,8.86213427,129.89,129.81,3.45]
[1765422989443,3.11,129.89,129.82,68.85]
[1765422989642,3.11,129.89,129.84,3.45]
[1765422990144,0.05614278,129.88,129.85,3.50937162]
[1765422992748,3.16614278,129.88,129.85,0.05937162]
[1765422994139,3.11,129.86,129.81,65.4]
[1765422994447,3.11,129.86,129.75,111.2349]
[1765422994636,3.35,129.84,129.76,65.4]
[1765422994840,3.35,129.84,129.76,68.76]
[1765422995039,0.05264149,129.81,129.79,0.05071302]
[1765422996357,0.05264149,129.81,129.79,3.41071302]
[1765422996752,3.40264149,129.81,129.79,0.05071302]
[1765422997253,3.40264149,129.81,129.7,3.36]
[1765422997464,3.35,129.79,129.71,65.4]
[1765422997752,3.35,129.78,129.71,68.76]
[1765422998147,3.35,129.78,129.71,3.36]
[1765422998349,0.05772128,129.76,129.73,0.04893246]
[1765422998556,3.35,129.75,129.73,0.04893246]
[1765422998857,3.40772128,129.76,129.73,0.04893246]
[1765423000558,0.05772128,129.76,129.73,0.04893246]
[1765423002261,3.40772128,129.76,129.73,0.04893246]
[1765423003348,0.05772128,129.76,129.73,3.40893246]
[1765423006057,3.40772128,129.76,129.73,0.04893246]
[1765423010959,3.35,129.74,129.64,3.36]
[1765423011159,3.35,129.74,129.65,3.36]
[1765423011360,3.35,129.74,129.66,3.36]
[1765423012259,0.05847831,129.71,129.69,3.41848117]
[1765423013772,3.35,129.77,129.7,3.36]
[1765423014869,3.40292634,129.75,129.72,0.05158416]
[1765423015263,0.05292634,129.75,129.72,3.41158416]
[1765423016769,3.40292634,129.75,129.72,0.05158416]
[1765423017267,3.40292634,129.75,129.65,3.36]
[1765423017459,3.35,129.72,129.65,3.36]
[1765423018365,107.8999,129.73,129.67,0.05001047]
[1765423018366,3.35,129.69,129.67,0.05001047]
[1765423020769,0.05157769,129.7,129.67,3.41001047]
[1765423023269,3.40157769,129.7,129.67,0.05001047]
[1765423023871,10.33977769,129.7,129.67,0.05001047]
[1765423024080,3.35,129.69,129.6,3.36]
[1765423024273,3.35,129.69,129.61,65.46]
[1765423024672,6.9387,129.69,129.61,65.46]
[1765423024880,3.34,129.68,129.61,65.46]
[1765423025073,0.05933103,129.66,129.63,3.20928953]
[1765423025974,3.34,129.72,129.65,3.15]
[1765423026573,9.10497224,129.75,129.65,3.15]
[1765423026876,0.05058655,129.71,129.69,0.05346242]
[1765423027183,0.05058655,129.71,129.69,3.20346242]
[1765423027882,5.76527075,129.79,129.69,3.20346242]
[1765423027883,6.9325,129.8,129.72,3.15]
[1765423028078,10.2725,129.8,129.72,3.15]
[1765423028285,10.2725,129.8,129.72,68.61]
[1765423028772,0.05218894,129.77,129.75,0.05501843]
[1765423030175,3.39218894,129.77,129.75,0.05501843]
[1765423031375,3.41,129.76,129.67,10.2591]
[1765423031583,3.41,129.79,129.69,3.32]
[1765423031884,3.41,129.79,129.7,3.32]
[1765423032084,10.3433,129.79,129.7,10.2576]
[1765423032285,10.3433,129.79,129.71,3.32]
[1765423032482,3.4671701,129.76,129.73,0.05183046]
[1765423032680,0.0571701,129.76,129.73,0.05183046]
[1765423033178,0.0571701,129.76,129.73,3.37183046]
[1765423034771,3.41,129.82,129.74,3.32]
[1765423034979,3.41,129.82,129.76,3.32]
[1765423035179,3.41,129.85,129.78,3.32]
[1765423035380,15.13253967,129.84,129.78,3.32]
[1765423035581,3.41,129.84,129.77,65.46]
[1765423035886,0.05779413,129.82,129.79,0.05658997]
[1765423036184,0.05779413,129.82,129.79,3.37658997]
[1765423038583,3.46779413,129.82,129.79,0.05658997]
[1765423038991,3.41,129.81,129.79,0.05658997]
[1765423039586,3.46779413,129.82,129.79,0.05658997]
[1765423039789,0.05779413,129.82,129.79,3.37658997]
[1765423040879,3.46779413,129.82,129.79,0.05658997]
[1765423041080,5.92730845,129.81,129.79,0.05658997]
[1765423041280,3.41,129.8,129.79,0.05658997]
[1765423041475,3.46779413,129.82,129.79,0.05658997]
[1765423042383,0.05779413,129.82,129.79,3.37658997]
[1765423043292,3.46779413,129.82,129.79,0.05658997]
[1765423044788,0.05779413,129.82,129.79,0.05658997]
[1765423046692,0.05779413,129.82,129.79,3.37658997]
[1765423047398,0.05779413,129.82,129.79,10.30928997]
[1765423047796,0.05779413,129.82,129.8,3.32]
[1765423048489,3.41,129.86,129.8,3.32]
[1765423049295,10.3379,129.89,129.81,3.32]
[1765423049493,0.05622186,129.86,129.84,0.0535243]
[1765423050399,3.46622186,129.86,129.84,0.0535243]
[1765423050900,3.41,129.85,129.78,3.32]
[1765423051103,3.41,129.85,129.78,68.74]
[1765423052205,3.45871042,129.83,129.8,0.05805922]
[1765423053902,10.38981042,129.83,129.8,0.05805922]
[1765423054204,3.41,129.82,129.8,0.05805922]
[1765423055902,3.41,129.82,129.75,3.32]
[1765423056089,3.41,129.81,129.73,68.78]
[1765423056899,3.41,129.81,129.74,3.36]
[1765423057089,3.46570677,129.78,129.76,0.05478943]
[1765423057291,0.05570677,129.78,129.76,3.41478943]
[1765423059598,3.41,129.82,129.76,3.41478943]
[1765423060301,10.3399,129.85,129.76,10.34908943]
[1765423060601,0.05417667,129.82,129.79,3.41051144]
[1765423061911,3.41,129.88,129.8,3.36]
[1765423062093,3.41,129.88,129.82,3.36]
[1765423062795,3.41,129.91,129.82,3.36]
[1765423063109,0.05260768,129.88,129.85,3.41443431]
[1765423065407,3.46260768,129.88,129.85,0.05443431]
[1765423065802,10.39110768,129.88,129.85,0.05443431]
[1765423065998,3.41,129.87,129.85,0.05443431]
[1765423067708,3.41,129.86,129.85,0.05443431]
[1765423068107,3.41,129.85,129.79,3.36]
[1765423069112,0.05367332,129.83,129.81,0.05821662]
[1765423069307,3.46367332,129.83,129.81,0.05821662]
[1765423069817,0.05367332,129.83,129.81,0.05821662]
[1765423071013,0.05367332,129.83,129.81,3.41821662]
[1765423074011,3.46367332,129.83,129.81,0.05821662]
[1765423077013,0.05367332,129.83,129.81,0.05821662]
[1765423078315,3.46367332,129.83,129.81,0.05821662]
[1765423080323,0.05367332,129.83,129.81,3.41821662]
[1765423082228,32.3375,129.9,129.82,3.36]
[1765423082424,15.02879591,129.89,129.82,68.76]
[1765423082620,3.41,129.89,129.82,68.76]
[1765423083219,3.41,129.86,129.84,0.05461369]
[1765423083823,3.46879185,129.87,129.84,0.05461369]
[1765423084128,0.05879185,129.87,129.84,3.41461369]
[1765423084728,0.05879185,129.87,129.86,3.4]
[1765423086727,15.91600363,129.95,129.87,3.4]
[1765423086728,3.39,129.95,129.87,3.4]
[1765423086919,3.39,129.93,129.87,68.8]
[1765423087628,3.44189163,129.91,129.89,0.05326097]
[1765423087819,3.44189163,129.91,129.83,3.4]
[1765423088018,15.01716176,129.9,129.83,3.4]
[1765423088219,3.39,129.9,129.83,3.4]
[1765423088828,3.44753744,129.88,129.85,0.05179346]
[1765423090822,0.05753744,129.88,129.85,3.22179346]
[1765423091731,3.26753744,129.88,129.85,0.05179346]
[1765423092327,0.05753744,129.88,129.85,3.22179346]
[1765423092629,3.21,129.95,129.87,3.17]
[1765423092930,3.21,129.94,129.89,3.17]
[1765423093631,3.26408914,129.93,129.9,0.04917076]
[1765423093833,3.26408914,129.93,129.9,0.05651171]
[1765423094135,0.05408914,129.93,129.9,3.22651171]
[1765423095033,3.26408914,129.93,129.9,3.22651171]
[1765423095834,3.26408914,129.93,129.9,0.05651171]
[1765423096828,3.26408914,129.93,129.84,3.17]
[1765423096829,3.21,129.92,129.84,3.17]
[1765423097327,3.21,129.92,129.85,3.17]
[1765423097933,0.05305582,129.9,129.87,3.22639009]
[1765423098633,3.26305582,129.9,129.87,0.05639009]
[1765423098834,0.05305582,129.9,129.87,3.22639009]
[1765423099334,3.21,129.95,129.87,3.22639009]
[1765423099524,3.21,129.95,129.87,3.17]
[1765423100126,0.04886803,129.92,129.9,0.05531068]
[1765423100630,3.25886803,129.92,129.9,0.05531068]
[1765423101133,0.04886803,129.92,129.9,0.05531068]
[1765423103328,0.04886803,129.92,129.9,3.22531068]
[1765423104533,0.04886803,129.92,129.9,0.05531068]
[1765423104835,0.04886803,129.92,129.9,3.22531068]
[1765423105230,0.04886803,129.92,129.9,0.05531068]
[1765423105231,3.25886803,129.92,129.9,0.05531068]
[1765423105739,0.04886803,129.92,129.9,3.22531068]
[1765423107029,0.04886803,129.92,129.9,0.05531068]
[1765423108634,3.25886803,129.92,129.9,0.05531068]
[1765423108835,3.25886803,129.92,129.84,3.17]
[1765423109040,3.21,129.92,129.84,3.17]
[1765423110041,3.26806527,129.89,129.87,0.05044807]
[1765423110337,3.26394107,129.89,129.87,0.05044807]
[1765423114237,10.19184107,129.89,129.87,0.05044807]
[1765423114438,3.31,129.88,129.8,3.39]
[1765423115444,0.05503656,129.85,129.83,0.05494859]
[1765423115836,3.36503656,129.85,129.83,0.05494859]
[1765423119841,0.05503656,129.85,129.83,0.05494859]
[1765423121153,3.31,129.91,129.83,3.44494859]
[1765423121345,3.31,129.9,129.83,3.39]
[1765423122051,3.31,129.89,129.83,3.39]
[1765423122245,5.83550374,129.92,129.83,3.39]
[1765423122246,3.36232294,129.87,129.85,0.04953727]
[1765423122449,3.3611722,129.87,129.85,0.04953727]
[1765423125653,0.0511722,129.87,129.85,3.43953727]
[1765423127340,5.88467433,129.92,129.85,3.43953727]
[1765423127541,3.31,129.93,129.86,3.39]
[1765423127749,6.9243,129.96,129.88,3.39]
[1765423128048,3.31,129.96,129.88,3.39]
[1765423128251,0.05540353,129.93,129.91,3.44918239]
[1765423128637,3.36540353,129.93,129.91,0.05918239]
[1765423129043,0.05540353,129.93,129.91,0.05918239]
[1765423129452,3.36540353,129.93,129.91,0.05918239]
[1765423130452,0.05540353,129.93,129.91,0.05918239]
[1765423130842,0.05540353,129.93,129.91,3.44918239]
[1765423133040,0.05540353,129.93,129.91,0.05918239]
[1765423135254,0.05540353,129.93,129.91,3.44918239]
[1765423137155,3.31,129.96,129.91,3.44918239]
[1765423138255,0.04433705,129.95,129.91,3.44918239]
[1765423139344,3.35433705,129.95,129.91,3.44918239]
[1765423139545,0.04433705,129.95,129.91,10.37558239]
[1765423139859,0.04433705,129.95,129.92,3.39]
[1765423140561,0.04433705,129.95,129.91,0.05918239]
[1765423140562,3.35433705,129.95,129.91,3.44918239]